bitfinex-derivatives/quotes_BNBF0:USTF0_20250111
["timestamp","ask_amount","ask_price","bid_price","bid_amount"]
[1736559051876,1.07893058,691.7,690.46,0.28966196]
[1736559052083,1.07893058,691.62,690.46,0.28966196]
[1736559053179,0.28905911,691.9,690.46,0.28966196]
[1736559077306,1.07893058,692.29,690.46,0.28966196]
[1736559077610,1.07893058,692.27,690.46,0.28966196]
[1736559078212,0.28889627,692.29,690.46,0.28966196]
[1736559078213,0.28889627,692.29,690.46,2.49055933]
[1736559079109,0.28889627,692.29,690.46,0.28966196]
[1736559084615,1.07893058,692.23,690.46,0.28966196]
[1736559085612,1.07893058,692.22,690.46,0.28966196]
[1736559086418,1.07893058,692.28,690.46,0.28966196]
[1736559087313,1.07893058,692.25,690.46,0.28966196]
[1736559088519,1.07893058,692.26,690.46,0.28966196]
[1736559089221,1.07893058,692.22,690.46,0.28966196]
[1736559090316,0.28889627,692.29,690.46,0.28966196]
[1736559090317,1.07893058,692.23,690.46,0.28966196]
[1736559091221,1.07893058,692.21,690.46,0.28966196]
[1736559092725,1.07893058,692.2,690.46,0.28966196]
[1736559093521,1.07893058,692.21,690.46,0.28966196]
[1736559094523,1.07893058,692.22,690.46,0.28966196]
[1736559094927,1.07893058,692.2,690.46,0.28966196]
[1736559096028,0.28889627,692.29,690.46,0.28966196]
[1736559096029,1.07893058,692.21,690.46,0.28966196]
[1736559097630,0.28889627,692.29,690.49,2.20089737]
[1736559097631,1.07893058,692.23,690.49,2.20089737]
[1736559098431,0.28892548,692.22,690.51,0.28964098]
[1736559098631,1.07893058,692.19,690.51,0.28964098]
[1736559099430,0.28892548,692.22,690.52,2.20089737]
[1736559099431,1.07893058,692.17,690.52,2.20089737]
[1736559099830,1.07893058,692.17,690.54,0.2896284]
[1736559100229,1.07893058,692.19,690.54,0.2896284]
[1736559101631,1.07893058,692.18,690.54,0.2896284]
[1736559102427,1.07893058,692.19,690.54,0.2896284]
[1736559103333,0.28892548,692.22,690.54,0.2896284]
[1736559103334,1.07893058,692.18,690.54,0.2896284]
[1736559104234,1.07893058,692.16,690.54,0.2896284]
[1736559105135,1.07893058,692.05,690.54,0.2896284]
[1736559105834,1.07893058,692.04,690.54,0.2896284]
[1736559106935,1.07893058,692.07,690.54,0.2896284]
[1736559107930,0.28892548,692.22,690.54,0.2896284]
[1736559107931,1.07893058,692.04,690.55,2.20089737]
[1736559108135,1.07893058,692.04,690.57,0.28961582]
[1736559108732,1.07893058,692.03,690.57,0.28961582]
[1736559109432,0.28892548,692.22,690.57,0.28961582]
[1736559109433,1.07893058,692.02,690.57,0.28961582]
[1736559111234,1.07893058,692.01,690.57,0.28961582]
[1736559112934,1.07893058,692.01,690.55,3.26590898]
[1736559113135,1.07893058,692.01,690.55,1.54790794]
[1736559113541,1.07893058,692.01,690.55,3.26590898]
[1736559114342,1.07893058,691.99,690.55,3.26590898]
[1736559114636,1.07893058,691.99,690.55,4.40523436]
[1736559115243,1.07893058,692.0,690.55,4.40523436]
[1736559115441,1.07893058,692.0,690.55,6.1232354]
[1736559115743,1.07893058,692.0,690.56,1.54790794]
[1736559116239,1.07893058,692.0,690.56,3.26590898]
[1736559116643,1.07893058,691.98,690.59,2.20089737]
[1736559117439,1.07893058,691.97,690.58,5.46680635]
[1736559118545,1.07893058,691.96,690.59,2.20089737]
[1736559118844,1.07893058,691.96,690.59,5.05822379]
[1736559119047,1.07893058,691.96,690.6,3.26590898]
[1736559119445,1.07893058,692.05,690.78,2.20089737]
[1736559121648,0.91851357,692.44,690.75,2.20089737]
[1736559121649,1.07893058,692.03,690.75,2.20089737]
[1736559123844,1.07893058,692.03,690.7,3.26590898]
[1736559124048,1.07893058,691.98,690.7,3.26590898]
[1736559124250,1.07893058,691.98,690.7,1.54790794]
[1736559124544,1.07893058,691.98,690.69,2.85732642]
[1736559125246,1.07893058,691.99,690.69,2.85732642]
[1736559125646,1.07893058,691.99,690.69,1.54790794]
[1736559125849,1.07893058,691.99,690.66,1.54790794]
[1736559126045,1.07893058,692.01,690.66,1.54790794]
[1736559127155,1.07893058,692.01,690.66,3.26590898]
[1736559127452,1.07893058,692.01,690.66,1.54790794]
[1736559127650,1.07893058,692.01,690.65,2.85732642]
[1736559127854,1.07893058,691.87,690.65,2.85732642]
[1736559128051,1.07893058,691.87,690.64,3.26590898]
[1736559128254,1.07893058,691.87,690.64,1.54790794]
[1736559128452,1.07893058,691.87,690.63,2.85732642]
[1736559129052,1.07893058,691.87,690.48,1.54790794]
[1736559129955,1.07893058,691.87,690.48,3.26590898]
[1736559130451,1.07893058,691.87,690.48,1.54790794]
[1736559130754,1.07893058,691.87,690.47,1.54790794]
[1736559130952,1.07893058,691.87,690.47,3.26590898]
[1736559131352,1.07893058,691.87,690.47,1.54790794]
[1736559131548,1.07893058,691.88,690.46,4.40523436]
[1736559131750,1.07893058,691.88,690.46,6.1232354]
[1736559131953,1.07893058,691.88,690.47,3.26590898]
[1736559132253,1.07893058,691.88,690.47,1.54790794]
[1736559132455,1.07893058,691.88,690.45,1.54790794]
[1736559133353,1.07893058,691.89,690.45,1.54790794]
[1736559133654,1.07893058,691.89,690.45,3.26590898]
[1736559133851,1.07893058,691.89,690.45,1.54790794]
[1736559134057,1.07893058,691.89,690.43,4.57532746]
[1736559134058,1.07893058,691.89,690.44,1.54790794]
[1736559135258,1.07893058,692.05,690.57,2.20089737]
[1736559135452,0.26567691,692.04,690.57,2.20089737]
[1736559135856,1.07893058,692.05,690.57,2.20089737]
[1736559136262,1.07893058,692.05,690.56,2.20089737]
[1736559137154,1.07893058,692.06,690.57,2.20089737]
[1736559137358,0.26566864,692.05,690.57,2.20089737]
[1736559138060,0.26566864,692.05,690.56,2.20089737]
[1736559139858,0.26566864,692.05,690.57,2.20089737]
[1736559140457,0.26567288,692.04,690.57,2.20089737]
[1736559140662,0.26567288,692.03,690.57,2.20089737]
[1736559140862,1.34460346,692.05,690.56,2.20089737]
[1736559141061,0.26567182,692.04,690.56,2.20089737]
[1736559141457,1.07893058,692.05,690.56,2.20089737]
[1736559141659,0.26567259,692.04,690.56,2.20089737]
[1736559141862,0.26567259,692.04,690.51,3.26590898]
[1736559141863,1.07893058,691.94,690.52,2.85732642]
[1736559142063,1.07893058,691.94,690.52,6.1232354]
[1736559142262,1.07893058,691.94,690.53,3.26590898]
[1736559142862,1.07893058,691.93,690.53,1.54790794]
[1736559143062,1.07893058,691.93,690.52,2.85732642]
[1736559143564,1.07893058,691.93,690.47,1.54790794]
[1736559143862,1.07893058,691.94,690.47,1.54790794]
[1736559144561,1.07893058,691.93,690.47,1.54790794]
[1736559145871,1.07893058,691.93,690.47,3.26590898]
[1736559146364,1.07893058,691.91,690.47,6.1232354]
[1736559146664,1.07893058,691.91,690.48,3.26590898]
[1736559146865,1.07893058,691.91,690.5,0.28964518]
[1736559149566,1.07893058,691.9,690.5,0.28964518]
[1736559150467,1.07893058,692.01,690.59,2.20089737]
[1736559150669,1.07893058,692.01,690.6,0.28960324]
[1736559150964,1.07893058,692.0,690.6,2.49050061]
[1736559152163,1.07893058,691.99,690.6,2.49050061]
[1736559153071,1.07893058,691.99,690.63,2.20089737]
[1736559153369,1.07893058,691.99,690.64,0.28958647]
[1736559154566,1.07893058,691.97,690.64,0.28958647]
[1736559154769,1.07893058,691.97,690.64,2.49048384]
[1736559155270,0.91687005,692.37,690.64,2.49048384]
[1736559155271,1.07893058,691.96,690.66,2.20089737]
[1736559155869,1.07893058,691.96,690.67,0.28957389]
[1736559156171,1.07893058,691.95,690.67,0.28957389]
[1736559156871,1.07893058,691.8,690.67,0.28957389]
[1736559160668,1.07893058,691.79,690.67,0.28957389]
[1736559163373,1.07893058,691.98,690.67,0.28957389]
[1736559163574,1.07893058,692.02,690.67,0.28957389]
[1736559164780,1.07893058,692.15,690.67,0.28957389]
[1736559165079,0.28895888,692.14,690.67,0.28957389]
[1736559172781,1.07893058,692.05,690.67,0.28957389]
[1736559173985,1.07893058,692.06,690.67,0.28957389]
[1736559174686,1.07893058,692.08,690.67,0.28957389]
[1736559175488,1.07893058,692.02,690.67,0.28957389]
[1736559177785,1.07893058,692.03,690.67,0.28957389]
[1736559178888,1.07893058,692.04,690.67,0.28957389]
[1736559179884,1.07893058,692.05,690.67,0.28957389]
[1736559180989,0.28895888,692.14,690.67,0.28957389]
[1736559180990,1.07893058,692.07,690.67,0.28957389]
[1736559181785,1.07893058,692.06,690.67,0.28957389]
[1736559182587,1.07893058,692.05,690.67,0.28957389]
[1736559183287,1.07893058,692.04,690.67,0.28957389]
[1736559184289,0.28895888,692.14,690.67,0.28957389]
[1736559184290,1.07893058,692.05,690.67,0.28957389]
[1736559185193,1.07893058,692.04,690.67,0.28957389]
[1736559188093,1.07893058,692.13,690.67,0.28957389]
[1736559188994,0.28895888,692.14,690.67,0.28957389]
[1736559188995,1.07893058,692.11,690.67,0.28957389]
[1736559189598,0.26564854,692.1,690.67,0.28957389]
[1736559189799,1.07893058,692.07,690.67,0.28957389]
[1736559190891,0.28895888,692.14,690.67,0.28957389]
[1736559190892,1.07893058,692.06,690.67,0.28957389]
[1736559191594,1.07893058,692.05,690.67,0.28957389]
[1736559192701,1.07893058,692.01,690.67,0.28957389]
[1736559193596,0.28895888,692.14,690.67,0.28957389]
[1736559193597,1.07893058,692.02,690.67,0.28957389]
[1736559194501,0.28895888,692.14,690.67,0.28957389]
[1736559194502,1.07893058,691.99,690.67,0.28957389]
[1736559194895,1.07893058,691.91,690.67,0.28957389]
[1736559195802,1.07893058,691.89,690.67,0.28957389]
[1736559197705,1.07893058,691.9,690.67,0.28957389]
[1736559202403,1.07893058,691.89,690.67,0.28957389]
[1736559203003,1.07893058,691.91,690.67,0.28957389]
[1736559203909,1.07893058,691.9,690.67,0.28957389]
[1736559204706,1.07893058,691.91,690.67,0.28957389]
[1736559205409,1.07893058,691.97,690.67,0.28957389]
[1736559208010,0.28895888,692.14,690.67,0.28957389]
[1736559208011,1.07893058,692.06,690.67,0.28957389]
[1736559208209,0.28899645,692.05,690.67,0.28957389]
[1736559216815,1.07893058,692.02,690.67,0.28957389]
[1736559217813,1.07893058,691.92,690.67,0.28957389]
[1736559218917,1.07893058,691.91,690.67,0.28957389]
[1736559220010,1.07893058,691.89,690.67,0.28957389]
[1736559221811,1.07893058,691.88,690.67,0.28957389]
[1736559222615,1.07893058,691.9,690.67,0.28957389]
[1736559223213,1.07893058,691.87,690.67,0.28957389]
[1736559224118,0.28899645,692.05,690.67,0.28957389]
[1736559224119,1.07893058,691.85,690.67,0.28957389]
[1736559225224,1.07893058,691.88,690.67,0.28957389]
[1736559226418,1.07893058,691.84,690.67,0.28957389]
[1736559227618,1.07893058,691.81,690.67,0.28957389]
[1736559228923,1.07893058,691.99,690.67,0.28957389]
[1736559228924,1.07893058,691.8,690.67,0.28957389]
[1736559229924,1.07893058,691.79,690.67,0.28957389]
[1736559230825,1.07893058,691.85,690.67,0.28957389]
[1736559231926,1.07893058,691.81,690.67,0.28957389]
[1736559234431,1.07893058,691.83,690.67,0.28957389]
[1736559235228,1.07893058,691.8,690.67,0.28957389]
[1736559237029,0.28900481,692.03,690.67,0.28957389]
[1736559237030,1.07893058,691.79,690.67,0.28957389]
[1736559237834,1.07893058,691.8,690.67,0.28957389]
[1736559238733,1.07893058,691.81,690.67,0.28957389]
[1736559239630,1.07893058,691.9,690.67,0.28957389]
[1736559240433,1.07893058,691.86,690.67,0.28957389]
[1736559242437,1.07893058,691.89,690.67,0.28957389]
[1736559243139,1.07893058,691.88,690.67,0.28957389]
[1736559243742,1.07893058,691.86,690.67,0.28957389]
[1736559245739,1.07893058,691.89,690.67,0.28957389]
[1736559246743,0.28900481,692.03,690.67,0.28957389]
[1736559246744,1.07893058,691.81,690.67,0.28957389]
[1736559248436,0.28900481,692.03,690.67,0.28957389]
[1736559248437,1.07893058,691.8,690.67,0.28957389]
[1736559249338,1.07893058,691.79,690.67,0.28957389]
[1736559250445,0.28900481,692.03,690.67,0.28957389]
[1736559250446,1.07893058,691.83,690.67,0.28957389]
[1736559251745,0.28900481,692.03,690.67,0.28957389]
[1736559251746,1.07893058,691.8,690.67,0.28957389]
[1736559254745,1.07893058,691.88,690.67,0.28957389]
[1736559255847,1.07893058,691.81,690.67,0.28957389]
[1736559256846,1.07893058,691.82,690.67,0.28957389]
[1736559257650,1.07893058,691.83,690.67,0.28957389]
[1736559258948,1.07893058,691.85,690.67,0.28957389]
[1736559259952,1.07893058,691.87,690.67,0.28957389]
[1736559261555,1.07893058,691.89,690.67,0.28957389]
[1736559262457,1.07893058,691.88,690.67,0.28957389]
[1736559263257,1.07893058,691.8,690.67,0.28957389]
[1736559264258,1.07893058,691.88,690.67,0.28957389]
[1736559266454,1.07893058,691.89,690.67,0.28957389]
[1736559268361,1.07893058,691.88,690.67,0.28957389]
[1736559269762,0.28900481,692.03,690.67,0.28957389]
[1736559269763,1.07893058,691.87,690.67,0.28957389]
[1736559273966,1.07893058,691.8,690.67,0.28957389]
[1736559276466,1.07893058,691.79,690.67,0.28957389]
[1736559277266,1.07893058,691.88,690.67,0.28957389]
[1736559278573,1.07893058,691.87,690.67,0.28957389]
[1736559281966,1.07893058,691.84,690.67,0.28957389]
[1736559283875,1.07893058,691.83,690.67,0.28957389]
[1736559284670,1.07893058,691.85,690.67,0.28957389]
[1736559285576,1.07893058,691.77,690.67,0.28957389]
[1736559288376,1.07893058,691.78,690.67,0.28957389]
[1736559291678,1.07893058,691.77,690.67,0.28957389]
[1736559293579,1.07893058,691.8,690.67,0.28957389]
[1736559294577,1.07893058,691.78,690.67,0.28957389]
[1736559295378,1.07893058,691.79,690.67,0.28957389]
[1736559296974,1.07893058,691.81,690.67,0.28957389]
[1736559297976,1.07893058,691.84,690.67,0.28957389]
[1736559299275,0.28900481,692.03,690.67,0.28957389]
[1736559299276,1.07893058,691.83,690.67,0.28957389]
[1736559300480,1.07893058,691.87,690.67,0.28957389]
[1736559302083,1.07893058,691.86,690.67,0.28957389]
[1736559303977,1.07893058,691.85,690.67,0.28957389]
[1736559304582,0.28900481,692.03,690.67,0.28957389]
[1736559304583,1.07893058,691.84,690.67,0.28957389]
[1736559305684,1.07893058,691.85,690.67,0.28957389]
[1736559307087,1.07893058,691.73,690.67,0.28957389]
[1736559307988,1.07893058,691.72,690.67,0.28957389]
[1736559308892,1.07893058,691.8,690.67,0.28957389]
[1736559310787,1.07893058,691.76,690.67,0.28957389]
[1736559311589,0.28900481,692.03,690.67,0.28957389]
[1736559311590,1.07893058,691.77,690.67,0.28957389]
[1736559312492,0.28900481,692.03,690.67,0.28957389]
[1736559312493,1.07893058,691.78,690.67,0.28957389]
[1736559314093,1.07893058,691.8,690.67,0.28957389]
[1736559314989,1.36793539,692.03,690.67,0.28957389]
[1736559314990,1.07893058,691.79,690.67,0.28957389]
[1736559315791,1.07893058,691.87,690.67,0.28957389]
[1736559316693,1.07893058,691.86,690.67,0.28957389]
[1736559318494,1.07893058,691.83,690.67,0.28957389]
[1736559321301,1.07893058,691.82,690.67,0.28957389]
[1736559322702,1.07893058,691.74,690.67,0.28957389]
[1736559323400,1.07893058,691.73,690.67,0.28957389]
[1736559326096,1.07893058,691.76,690.67,0.28957389]
[1736559326699,1.07893058,691.79,690.67,0.28957389]
[1736559328403,1.07893058,691.81,690.67,0.28957389]
[1736559329499,1.07893058,691.9,690.67,0.28957389]
[1736559330502,1.07893058,691.91,690.67,0.28957389]
[1736559331501,1.07893058,691.92,690.67,0.28957389]
[1736559332105,1.07893058,691.91,690.67,0.28957389]
[1736559333101,1.07893058,691.92,690.67,0.28957389]
[1736559334807,1.07893058,691.94,690.67,0.28957389]
[1736559335702,1.07893058,691.96,690.67,0.28957389]
[1736559336707,1.07893058,691.94,690.67,0.28957389]
[1736559337504,1.07893058,691.96,690.67,0.28957389]
[1736559338708,1.07893058,691.81,690.67,0.28957389]
[1736559339307,1.07893058,691.82,690.67,0.28957389]
[1736559341705,1.07893058,691.81,690.67,0.28957389]
[1736559345513,0.28900481,692.03,690.67,0.28957389]
[1736559345514,1.07893058,691.83,690.67,0.28957389]
[1736559346108,0.28900481,692.03,690.67,0.28957389]
[1736559346109,1.07893058,691.84,690.67,0.28957389]
[1736559346814,1.07893058,691.83,690.67,0.28957389]
[1736559350917,1.07893058,691.82,690.67,0.28957389]
[1736559352319,1.07893058,691.85,690.67,0.28957389]
[1736559353315,1.07893058,691.86,690.67,0.28957389]
[1736559354320,1.07893058,691.85,690.67,0.28957389]
[1736559355226,1.07893058,691.86,690.67,0.28957389]
[1736559357731,1.07893058,691.85,690.67,0.28957389]
[1736559358732,1.07893058,691.93,690.67,0.28957389]
[1736559359833,1.07893058,691.87,690.67,0.28957389]
[1736559360525,0.28900481,692.03,690.67,0.28957389]
[1736559360526,1.07893058,691.84,690.67,0.28957389]
[1736559361435,1.07893058,691.83,690.67,0.28957389]
[1736559362631,1.07893058,691.84,690.67,0.28957389]
[1736559363537,1.07893058,691.82,690.67,0.28957389]
[1736559365534,1.07893058,691.84,690.67,0.28957389]
[1736559367039,0.28900481,692.03,690.67,0.28957389]
[1736559367040,1.07893058,691.93,690.67,0.28957389]
[1736559367934,0.28900481,692.03,690.67,0.28957389]
[1736559367935,1.07893058,691.86,690.67,0.28957389]
[1736559369635,0.28900481,692.03,690.67,0.28957389]
[1736559369636,1.07893058,691.83,690.67,0.28957389]
[1736559370636,1.07893058,691.82,690.67,0.28957389]
[1736559371343,1.07893058,691.83,690.67,0.28957389]
[1736559372443,1.07893058,691.84,690.67,0.28957389]
[1736559374244,1.07893058,691.83,690.67,0.28957389]
[1736559375043,1.07893058,691.82,690.67,0.28957389]
[1736559375945,0.28900481,692.03,690.67,0.28957389]
[1736559375946,1.07893058,691.77,690.67,0.28957389]
[1736559376845,0.91651697,692.02,690.67,0.28957389]
[1736559376846,1.07893058,691.75,690.67,0.28957389]
[1736559379747,0.28900481,692.03,690.67,0.28957389]
[1736559379748,1.07893058,691.85,690.67,0.28957389]
[1736559380647,1.07893058,691.91,690.67,0.28957389]
[1736559381552,1.07893058,691.94,690.67,0.28957389]
[1736559382149,0.28904657,691.93,690.67,0.28957389]
[1736559391063,1.07893058,691.91,690.67,0.28957389]
[1736559391660,1.07893058,691.92,690.67,0.28957389]
[1736559391864,1.36798133,691.92,690.67,0.28957389]
[1736559394671,1.07893058,691.91,690.67,0.28957389]
[1736559395462,1.36798133,691.92,690.67,0.28957389]
[1736559397171,1.07893058,691.86,690.67,0.28957389]
[1736559400174,1.07893058,691.84,690.67,0.28957389]
[1736559401172,1.07893058,691.83,690.67,0.28957389]
[1736559401969,1.07893058,691.81,690.67,0.28957389]
[1736559403068,1.07893058,691.77,690.67,0.28957389]
[1736559404773,1.07893058,691.75,690.67,0.28957389]
[1736559406875,1.07893058,691.74,690.67,0.28957389]
[1736559407675,1.07893058,691.72,690.67,0.28957389]
[1736559408879,1.07893058,691.71,690.67,0.28957389]
[1736559409670,1.07893058,691.67,690.67,0.28957389]
[1736559410674,1.07893058,691.65,690.67,0.28957389]
[1736559411478,1.07893058,691.63,690.67,0.28957389]
[1736559412278,0.91573297,691.91,690.67,0.28957389]
[1736559412279,1.07893058,691.59,690.67,0.28957389]
[1736559413078,1.07893058,691.57,690.67,0.28957389]
[1736559414376,1.07893058,691.59,690.67,0.28957389]
[1736559415180,1.07893058,691.57,690.67,0.28957389]
[1736559417183,1.07893058,691.59,690.67,0.28957389]
[1736559419482,1.07893058,691.61,690.67,0.28957389]
[1736559421085,1.07893058,691.71,690.67,0.28957389]
[1736559421883,1.07893058,691.72,690.67,0.28957389]
[1736559423692,1.07893058,691.73,690.67,0.28957389]
[1736559424593,1.07893058,691.68,690.67,0.28957389]
[1736559425697,1.07893058,691.76,690.67,0.28957389]
[1736559426493,1.07893058,691.73,689.89,3.27272515]
[1736559426696,0.28913433,691.72,689.91,0.28989288]
[1736559427395,0.26581962,691.71,689.91,0.28989288]
[1736559427596,0.28914269,691.7,689.91,0.28989288]
[1736559427797,1.07893058,691.54,689.91,0.28989288]
[1736559428898,1.07893058,691.59,689.91,0.28989288]
[1736559429501,1.07893058,691.64,689.91,0.28989288]
[1736559429794,0.28917195,691.63,689.91,0.28989288]
[1736559443201,0.26584715,691.62,689.91,2.49079025]
[1736559443405,0.55502328,691.62,689.91,2.49079025]
[1736559443604,0.26584715,691.61,689.91,2.49079025]
[1736559444009,0.26584715,691.61,690.02,2.20089737]
[1736559444305,0.26584715,691.61,690.03,0.28984247]
[1736559445005,0.26584715,691.61,690.03,2.49073984]
[1736559445203,0.55502746,691.61,690.03,2.49073984]
[1736559445401,0.26584529,691.6,690.03,2.49073984]
[1736559445599,0.28918031,691.61,690.03,2.49073984]
[1736559446706,0.28918031,691.61,690.03,0.28984247]
[1736559454409,1.36811089,691.61,690.03,0.28984247]
[1736559455510,1.34479855,691.6,690.03,0.28984247]
[1736559455706,0.26586797,691.59,690.03,0.28984247]
[1736559456507,1.07893058,691.5,690.03,0.28984247]
[1736559457314,0.28918031,691.61,690.03,0.28984247]
[1736559457315,1.07893058,691.57,690.03,0.28984247]
[1736559458110,1.07893058,691.56,690.03,0.28984247]
[1736559458813,1.07893058,691.59,690.03,0.28984247]
[1736559459715,1.07893058,691.57,690.03,0.28984247]
[1736559460808,1.07893058,691.53,690.03,0.28984247]
[1736559462012,0.28918031,691.61,690.03,0.28984247]
[1736559465316,1.07893058,691.6,690.03,0.28984247]
[1736559467120,1.07893058,691.59,690.03,0.28984247]
[1736559467821,1.36811089,691.61,690.03,0.28984247]
[1736559468722,1.07893058,691.6,690.03,0.28984247]
[1736559471622,1.07893058,691.48,690.03,0.28984247]
[1736559473222,1.07893058,691.58,690.07,2.20089737]
[1736559473422,1.07893058,691.58,690.08,0.28982146]
[1736559474119,1.07893058,691.6,690.08,0.28982146]
[1736559476222,1.36811089,691.61,690.08,0.28982146]
[1736559477325,1.07893058,691.59,690.13,2.20089737]
[1736559477524,1.07893058,691.59,690.14,0.28979627]
[1736559477923,1.07893058,691.6,690.14,0.28979627]
[1736559479818,1.07893058,691.52,690.14,0.28979627]
[1736559481025,1.07893058,691.53,690.14,0.28979627]
[1736559482623,1.07893058,691.54,690.14,0.28979627]
[1736559483632,1.07893058,691.53,690.14,0.28979627]
[1736559484832,0.28918031,691.61,690.14,0.28979627]
[1736559513753,0.28918031,691.61,690.17,2.20089737]
[1736559513954,0.28918031,691.61,690.18,0.28977947]
[1736559515060,0.28918031,691.61,690.18,2.49067684]
[1736559515859,0.28918031,691.61,690.18,0.28977947]
[1736559516662,0.28918031,691.61,690.18,2.49067684]
[1736559517364,0.28918031,691.61,690.18,0.28977947]
[1736559519158,1.07893058,691.58,690.25,2.20089737]
[1736559519361,1.07893058,691.58,690.26,0.28974589]
[1736559520167,1.07893058,691.57,690.26,0.28974589]
[1736559522762,0.28918031,691.61,690.26,0.28974589]
[1736559522763,1.07893058,691.56,690.26,0.28974589]
[1736559523665,1.07893058,691.57,690.26,0.28974589]
[1736559525270,0.28918031,691.61,690.26,0.28974589]
[1736559525271,1.07893058,691.58,690.27,2.20089737]
[1736559525467,1.07893058,691.58,690.28,0.28973749]
[1736559526174,1.07893058,691.57,690.28,0.28973749]
[1736559527076,1.07893058,691.57,690.28,2.49063486]
[1736559528774,1.07893058,691.55,690.28,0.28973749]
[1736559529172,1.07893058,691.55,690.28,3.14583262]
[1736559529372,1.07893058,691.55,690.28,6.41977742]
[1736559529669,1.07893058,691.55,690.29,3.2739448]
[1736559529869,1.07893058,691.55,690.3,0.2897291]
[1736559531275,1.07893058,691.55,690.3,3.5636739]
[1736559531978,0.28918031,691.61,690.38,2.20089737]
[1736559534872,0.28918031,691.61,690.37,2.20089737]
[1736559535470,0.28918031,691.61,690.38,2.20089737]
[1736559536472,0.28918031,691.61,690.38,5.47484217]
[1736559537279,0.28918031,691.61,690.39,2.85609513]
[1736559537475,0.28918031,691.61,690.39,6.13003993]
[1736559537674,0.28918031,691.61,690.4,1.55273297]
[1736559538273,0.28918031,691.61,690.4,3.2739448]
[1736559538776,0.28918031,691.61,690.4,6.13003993]
[1736559539077,0.28918031,691.61,690.41,1.55273297]
[1736559540179,1.07893058,691.5,690.41,1.55273297]
[1736559540579,1.07893058,691.5,690.4,2.85609513]
[1736559541782,1.07893058,691.5,690.37,1.55273297]
[1736559541980,0.28918031,691.61,690.35,0.28970811]
[1736559541981,1.07893058,691.51,690.35,0.28970811]
[1736559542778,1.07893058,691.5,690.35,0.28970811]
[1736559544383,1.07893058,691.49,690.35,0.28970811]
[1736559546279,1.07893058,691.52,690.35,0.28970811]
[1736559547184,0.28918031,691.61,690.35,0.28970811]
[1736559558184,1.07893058,691.55,690.35,0.28970811]
[1736559559186,1.07893058,691.56,690.35,0.28970811]
[1736559561394,1.07893058,691.57,690.35,0.28970811]
[1736559561594,1.36812762,691.57,690.35,0.28970811]
[1736559562292,0.28919704,691.57,690.35,0.28970811]
[1736559570198,1.07893058,691.52,690.35,0.28970811]
[1736559571195,1.07893058,691.51,690.35,0.28970811]
[1736559572297,1.07893058,691.5,690.35,0.28970811]
[1736559573994,1.07893058,691.49,690.35,0.28970811]
[1736559574798,0.28919704,691.57,690.35,0.28970811]
[1736559574799,1.07893058,691.48,690.35,0.28970811]
[1736559576300,0.28919704,691.57,690.35,0.28970811]
[1736559576301,1.07893058,691.43,690.35,0.28970811]
[1736559577200,1.07893058,691.5,690.35,0.28970811]
[1736559577401,0.2892305,691.49,690.35,0.28970811]
[1736559578102,1.07893058,691.47,690.35,0.28970811]
[1736559579105,0.2892305,691.49,690.35,0.28970811]
[1736559584908,1.07893058,691.46,690.35,0.28970811]
[1736559585908,1.07893058,691.45,690.35,0.28970811]
[1736559586711,1.07893058,691.46,690.35,0.28970811]
[1736559588409,0.2892305,691.49,690.35,0.28970811]
[1736559588410,1.07893058,691.37,690.35,0.28970811]
[1736559589012,0.2892305,691.49,690.35,0.28970811]
[1736559589013,1.07893058,691.34,690.35,0.28970811]
[1736559590910,1.07893058,691.33,690.35,0.28970811]
[1736559591512,1.07893058,691.34,690.35,0.28970811]
[1736559593517,1.07893058,691.32,690.35,0.28970811]
[1736559594515,1.07893058,691.42,690.35,0.28970811]
[1736559596517,1.07893058,691.4,690.35,0.28970811]
[1736559597419,1.07893058,691.42,690.35,0.28970811]
[1736559598218,1.07893058,691.4,690.35,0.28970811]
[1736559598914,1.07893058,691.41,690.35,0.28970811]
[1736559599711,1.07893058,691.48,690.35,0.28970811]
[1736559601421,1.07893058,691.47,690.35,0.28970811]
[1736559602323,1.07893058,691.43,690.35,0.28970811]
[1736559603817,1.07893058,691.37,690.35,0.28970811]
[1736559606624,1.07893058,691.38,690.35,0.28970811]
[1736559607820,1.07893058,691.3,690.35,0.28970811]
[1736559608823,1.07893058,691.28,690.35,0.28970811]
[1736559610122,1.07893058,691.29,690.35,0.28970811]
[1736559611622,1.07893058,691.3,690.35,0.28970811]
[1736559612729,1.07893058,691.29,690.35,0.28970811]
[1736559613629,1.07893058,691.31,690.35,0.28970811]
[1736559614932,1.07893058,691.38,690.35,0.28970811]
[1736559615830,1.07893058,691.36,690.35,0.28970811]
[1736559616727,1.07893058,691.38,690.35,0.28970811]
[1736559617833,1.07893058,691.36,690.35,0.28970811]
[1736559618629,1.07893058,691.37,690.35,0.28970811]
[1736559620432,0.2892305,691.49,690.35,0.28970811]
[1736559620433,1.07893058,691.43,690.35,0.28970811]
[1736559623339,1.36816108,691.49,690.35,0.28970811]
[1736559624142,1.07893058,691.46,690.35,0.28970811]
[1736559624836,0.28924723,691.45,689.6,2.20089737]
[1736559625040,1.07893058,691.4,689.62,0.29001479]
[1736559625239,0.28927233,691.39,689.62,0.29001479]
[1736559625736,1.07893058,691.38,689.62,0.29001479]
[1736559626241,0.2892807,691.37,689.62,0.29001479]
[1736559627541,1.36821128,691.37,689.62,0.29001479]